fUSD/lending_fUSD_20260529
["ID","MTS","AMOUNT","RATE_DAILY","PERIOD"]
[423325730,1780057859000,-500.0,0.00014999,2]
[423325731,1780057859000,-500.0,0.00014999,2]
[423325725,1780057859000,-500.0,0.00014999,2]
[423325727,1780057859000,-500.0,0.00014999,2]
[423325724,1780057859000,-500.0,0.00014999,2]
[423325733,1780057859000,-500.0,0.00014999,2]
[423325719,1780057859000,-500.0,0.00014999,2]
[423325732,1780057859000,-500.0,0.00014999,2]
[423325726,1780057859000,-500.0,0.00014999,2]
[423325717,1780057859000,-500.0,0.00014999,2]
[423325713,1780057859000,-2000.0,0.000149,5]
[423325721,1780057859000,-500.0,0.00014999,2]
[423325720,1780057859000,-500.0,0.00014999,2]
[423325718,1780057859000,-500.0,0.00014999,2]
[423325716,1780057859000,-600.0,0.000149,5]
[423325711,1780057859000,-189.65952921,0.000149,2]
[423325715,1780057859000,-22207.83321407,0.000149,2]
[423325712,1780057859000,-1007.51899633,0.000149,2]
[423325710,1780057859000,-1088.59,0.000149,2]
[423325714,1780057859000,-3809.76783992,0.000149,2]
[423325709,1780057859000,-600.0,0.000148,5]
[423325708,1780057859000,-2000.0,0.000148,5]
[423325734,1780057859000,-164.65220892,0.00014999,2]
[423325723,1780057859000,-500.0,0.00014999,2]
[423325736,1780057859000,-300.0,0.00014999,2]
[423325729,1780057859000,-500.0,0.00014999,2]
[423325735,1780057859000,-706.40305457,0.00014999,5]
[423325737,1780057859000,-300.0,0.00014999,2]
[423325761,1780057859000,-200.0,0.00015068,2]
[423325764,1780057859000,-200.0,0.00015068,2]
[423325760,1780057859000,-200.0,0.00015068,2]
[423325762,1780057859000,-200.0,0.00015068,2]
[423325759,1780057859000,-200.0,0.00015068,2]
[423325755,1780057859000,-176.17,0.00015068,2]
[423325757,1780057859000,-200.0,0.00015068,2]
[423325756,1780057859000,-200.0,0.00015068,2]
[423325758,1780057859000,-200.0,0.00015068,2]
[423325754,1780057859000,-169.08440953,0.00015,2]
[423325752,1780057859000,-167.0,0.00015,2]
[423325753,1780057859000,-167.0,0.00015,2]
[423325763,1780057859000,-200.0,0.00015068,2]
[423325749,1780057859000,-167.0,0.00015,2]
[423325750,1780057859000,-167.0,0.00015,2]
[423325740,1780057859000,-7182905.37640901,0.00015,2]
[423325742,1780057859000,-151.0,0.00015,2]
[423325739,1780057859000,-823.43,0.00015,2]
[423325746,1780057859000,-151.0,0.00015,2]
[423325741,1780057859000,-151.0,0.00015,2]
[423325743,1780057859000,-151.0,0.00015,2]
[423325751,1780057859000,-167.0,0.00015,2]
[423325745,1780057859000,-151.0,0.00015,2]
[423325747,1780057859000,-1043.45278188,0.00015,2]
[423325738,1780057859000,-3566137.97234621,0.00015,2]
[423325748,1780057859000,-167.0,0.00015,2]
[423325744,1780057859000,-151.0,0.00015,2]
[423325794,1780057860000,-200.0,0.00015068,2]
[423325798,1780057860000,-235.34044243,0.0001516,2]
[423325788,1780057860000,-200.0,0.00015068,2]
[423325792,1780057860000,-200.0,0.00015068,2]
[423325791,1780057860000,-200.0,0.00015068,2]
[423325795,1780057860000,-200.0,0.00015068,2]
[423325801,1780057860000,-1043.45278188,0.000153,2]
[423325799,1780057860000,-151.29,0.00015188,2]
[423325807,1780057860000,-1043.45278188,0.000156,2]
[423325796,1780057860000,-200.0,0.00015068,2]
[423325804,1780057860000,-1043.45278188,0.000155,2]
[423325803,1780057860000,-1025.5045555,0.00015383,2]
[423325802,1780057860000,-2000.0,0.00015353,2]
[423325806,1780057860000,-2731.01,0.00015567,2]
[423325805,1780057860000,-4609.0,0.00015565,2]
[423325809,1780057860000,-151.29,0.00015849,2]
[423325812,1780057860000,-215.5484138,0.00016,3]
[423325814,1780057860000,-300.0,0.00016,2]
[423325810,1780057860000,-1252.0,0.00015899,2]
[423325816,1780057860000,-500.0,0.00016115,2]
[423325797,1780057860000,-281.775012,0.00015068,2]
[423325813,1780057860000,-151.0,0.00016,4]
[423325789,1780057860000,-200.0,0.00015068,2]
[423325773,1780057860000,-200.0,0.00015068,2]
[423325793,1780057860000,-200.0,0.00015068,2]
[423325765,1780057860000,-200.0,0.00015068,2]
[423325766,1780057860000,-200.0,0.00015068,2]
[423325767,1780057860000,-200.0,0.00015068,2]
[423325769,1780057860000,-200.0,0.00015068,2]
[423325770,1780057860000,-200.0,0.00015068,2]
[423325768,1780057860000,-200.0,0.00015068,2]
[423325771,1780057860000,-200.0,0.00015068,2]
[423325775,1780057860000,-200.0,0.00015068,2]
[423325772,1780057860000,-200.0,0.00015068,2]
[423325777,1780057860000,-200.0,0.00015068,2]
[423325790,1780057860000,-200.0,0.00015068,2]
[423325776,1780057860000,-200.0,0.00015068,2]
[423325782,1780057860000,-200.0,0.00015068,2]
[423325784,1780057860000,-200.0,0.00015068,2]
[423325779,1780057860000,-200.0,0.00015068,2]
[423325787,1780057860000,-200.0,0.00015068,2]
[423325778,1780057860000,-200.0,0.00015068,2]
[423325780,1780057860000,-200.0,0.00015068,2]
[423325783,1780057860000,-200.0,0.00015068,2]
[423325781,1780057860000,-200.0,0.00015068,2]
[423325786,1780057860000,-200.0,0.00015068,2]
[423325785,1780057860000,-200.0,0.00015068,2]
[423325774,1780057860000,-200.0,0.00015068,2]
[423325811,1780057860000,-1043.45278188,0.000159,2]
[423325800,1780057860000,-1043.45278188,0.000152,2]
[423325817,1780057860000,-584.43,0.00016115,2]
[423325834,1780057860000,-4101.394339,0.00016438,2]
[423325830,1780057860000,-7567.4,0.00016438,2]
[423325837,1780057860000,-2000.0,0.00016748,2]
[423325836,1780057860000,-4101.394339,0.00016438,2]
[423325843,1780057860000,-462.0,0.0001726,2]
[423325857,1780057860000,-30051.06,0.00018356,2]
[423325855,1780057860000,-1760.66653465,0.000182,2]
[423325858,1780057860000,-1760.66653465,0.000184,2]
[423325848,1780057860000,-151.0,0.00018,4]
[423325851,1780057860000,-350.0,0.00018,2]
[423325832,1780057860000,-151.0,0.00016438,2]
[423325854,1780057860000,-462.0,0.00018082,2]
[423325849,1780057860000,-8153.8,0.00018,2]
[423325850,1780057860000,-173.54599134,0.00018,2]
[423325852,1780057860000,-1760.66653465,0.00018,2]
[423325853,1780057860000,-1828.25359657,0.00018,2]
[423325862,1780057860000,-1828.25359657,0.000185,2]
[423325859,1780057860000,-1828.25359657,0.000184,2]
[423325864,1780057860000,-1828.25359657,0.000187,2]
[423325863,1780057860000,-1760.66653465,0.000187,2]
[423325861,1780057860000,-1760.66653465,0.000185,2]
[423325808,1780057860000,-1043.45278188,0.000158,2]
[423325856,1780057860000,-1828.25359657,0.000182,2]
[423325845,1780057860000,-1088.59,0.000176,2]
[423325860,1780057860000,-7567.4,0.0001841,2]
[423325827,1780057860000,-500.0,0.00016437,2]
[423325835,1780057860000,-4101.394339,0.00016438,2]
[423325815,1780057860000,-1043.45278188,0.000161,2]
[423325818,1780057860000,-1043.45278188,0.000162,2]
[423325820,1780057860000,-286.92148777,0.00016402,2]
[423325823,1780057860000,-500.0,0.00016437,2]
[423325824,1780057860000,-500.0,0.00016437,2]
[423325821,1780057860000,-1000.0,0.00016405,2]
[423325825,1780057860000,-500.0,0.00016437,2]
[423325822,1780057860000,-1421.99,0.00016405,2]
[423325826,1780057860000,-500.0,0.00016437,2]
[423325831,1780057860000,-462.0,0.00016438,2]
[423325819,1780057860000,-1043.45278188,0.000164,2]
[423325841,1780057860000,-6453.0,0.00017121,2]
[423325842,1780057860000,-1325.94,0.00017227,2]
[423325828,1780057860000,-500.0,0.00016437,2]
[423325838,1780057860000,-207.31,0.00016767,2]
[423325829,1780057860000,-796.0,0.00016437,2]
[423325833,1780057860000,-4101.394339,0.00016438,2]
[423325844,1780057860000,-2129.0,0.00017402,2]
[423325840,1780057860000,-151.0,0.00017,4]
[423325839,1780057860000,-200.0,0.000168,3]
[423325846,1780057860000,-179.8866763,0.00017628,2]
[423325847,1780057860000,-500.0,0.00017825,2]
[423325891,1780057861000,-693.39197629,0.00019866,2]
[423325882,1780057861000,-151.0,0.00019866,2]
[423325884,1780057861000,-279.9045709,0.00019866,2]
[423325892,1780057861000,-151.0,0.00019866,2]
[423325873,1780057861000,-1272.0,0.00019241,2]
[423325888,1780057861000,-151.0,0.00019866,2]
[423325890,1780057861000,-174.61919141,0.00019866,2]
[423325879,1780057861000,-151.0,0.00019866,2]
[423325868,1780057861000,-1950.30162292,0.00019,2]
[423325885,1780057861000,-151.0,0.00019866,2]
[423325867,1780057861000,-151.0,0.00019,4]
[423325881,1780057861000,-693.39197629,0.00019866,2]
[423325893,1780057861000,-209.40437684,0.00019866,2]
[423325900,1780057861000,-151.0,0.00019866,2]
[423325876,1780057861000,-462.0,0.00019726,2]
[423325919,1780057861000,-1000.0,0.00019866,2]
[423325883,1780057861000,-743.50770149,0.00019866,2]
[423325897,1780057861000,-151.0,0.00019866,2]
[423325886,1780057861000,-151.0,0.00019866,2]
[423325875,1780057861000,-286.92148777,0.00019337,2]
[423325901,1780057861000,-200.0,0.00019866,2]
[423325866,1780057861000,-462.0,0.00018904,2]
[423325870,1780057861000,-20430.55,0.00019178,2]
[423325895,1780057861000,-209.40437684,0.00019866,2]
[423325898,1780057861000,-230.09519341,0.00019866,2]
[423325872,1780057861000,-151.0,0.00019178,2]
[423325874,1780057861000,-525.0,0.00019241,2]
[423325877,1780057861000,-151.0,0.00019866,2]
[423325896,1780057861000,-151.0,0.00019866,2]
[423325878,1780057861000,-200.0,0.00019866,2]
[423325871,1780057861000,-151.0,0.00019178,2]
[423325887,1780057861000,-578.20924308,0.00019866,2]
[423325889,1780057861000,-151.0,0.00019866,2]
[423325899,1780057861000,-209.40437684,0.00019866,2]
[423325894,1780057861000,-221.88543241,0.00019866,2]
[423325869,1780057861000,-201.0,0.00019061,2]
[423325865,1780057861000,-9035.0,0.00018833,2]
[423325906,1780057861000,-238.60871557,0.00019866,2]
[423325880,1780057861000,-151.0,0.00019866,2]
[423325913,1780057861000,-151.0,0.00019866,2]
[423325933,1780057861000,-1000.0,0.00019866,2]
[423325926,1780057861000,-1000.0,0.00019866,2]
[423325929,1780057861000,-266.08633524,0.00019866,2]
[423325931,1780057861000,-151.0,0.00019866,2]
[423325924,1780057861000,-152.0,0.00019866,2]
[423325925,1780057861000,-151.0,0.00019866,2]
[423325932,1780057861000,-151.0,0.00019866,2]
[423325928,1780057861000,-500.0,0.00019866,2]
[423325923,1780057861000,-256.59241585,0.00019866,2]
[423325940,1780057861000,-152.0,0.00019866,2]
[423325939,1780057861000,-500.0,0.00019866,2]
[423325936,1780057861000,-275.93152964,0.00019866,2]
[423325937,1780057861000,-1000.0,0.00019866,2]
[423325941,1780057861000,-151.0,0.00019866,2]
[423325942,1780057861000,-286.14099624,0.00019866,2]
[423325907,1780057861000,-2080.17592889,0.00019866,2]
[423325935,1780057861000,-151.0,0.00019866,2]
[423325930,1780057861000,-152.0,0.00019866,2]
[423325938,1780057861000,-151.0,0.00019866,2]
[423325934,1780057861000,-500.0,0.00019866,2]
[423325927,1780057861000,-151.0,0.00019866,2]
[423325914,1780057861000,-151.0,0.00019866,2]
[423325903,1780057861000,-209.40437684,0.00019866,2]
[423325912,1780057861000,-416.03518577,0.00019866,2]
[423325902,1780057861000,-152.0,0.00019866,2]
[423325910,1780057861000,-152.0,0.00019866,2]
[423325911,1780057861000,-693.39197629,0.00019866,2]
[423325918,1780057861000,-151.0,0.00019866,2]
[423325916,1780057861000,-247.43723804,0.00019866,2]
[423325921,1780057861000,-1428.38747117,0.00019866,2]
[423325908,1780057861000,-151.0,0.00019866,2]
[423325915,1780057861000,-500.0,0.00019866,2]
[423325904,1780057861000,-151.0,0.00019866,2]
[423325917,1780057861000,-152.0,0.00019866,2]
[423325909,1780057861000,-200.0,0.00019866,2]
[423325922,1780057861000,-500.0,0.00019866,2]
[423325920,1780057861000,-151.0,0.00019866,2]
[423325905,1780057861000,-721.12765534,0.00019866,2]
[423325964,1780057862000,-500.0,0.00019866,2]
[423325961,1780057862000,-500.0,0.00019866,2]
[423325958,1780057862000,-151.0,0.00019866,2]
[423325965,1780057862000,-151.0,0.00019866,2]
[423325962,1780057862000,-151.0,0.00019866,2]
[423325976,1780057862000,-151.0,0.0002,4]
[423325973,1780057862000,-151.0,0.00019976,2]
[423325974,1780057862000,-745.65223615,0.00019976,2]
[423325968,1780057862000,-2000.0,0.000199,7]
[423325969,1780057862000,-719.04747942,0.00019921,2]
[423325959,1780057862000,-152.0,0.00019866,2]
[423325975,1780057862000,-829.0,0.0002,2]
[423325957,1780057862000,-319.09232179,0.00019866,2]
[423325967,1780057862000,-500.0,0.00019866,2]
[423325949,1780057862000,-151.0,0.00019866,2]
[423325960,1780057862000,-151.0,0.00019866,2]
[423325971,1780057862000,-719.04747942,0.00019921,2]
[423325944,1780057862000,-564.92594168,0.00019866,2]
[423325943,1780057862000,-151.0,0.00019866,2]
[423325945,1780057862000,-500.0,0.00019866,2]
[423325950,1780057862000,-152.0,0.00019866,2]
[423325947,1780057862000,-151.0,0.00019866,2]
[423325966,1780057862000,-200.0,0.00019866,2]
[423325952,1780057862000,-500.0,0.00019866,2]
[423325953,1780057862000,-307.70715698,0.00019866,2]
[423325956,1780057862000,-500.0,0.00019866,2]
[423325954,1780057862000,-151.0,0.00019866,2]
[423325951,1780057862000,-151.0,0.00019866,2]
[423325946,1780057862000,-152.0,0.00019866,2]
[423325948,1780057862000,-296.7282131,0.00019866,2]
[423325955,1780057862000,-152.0,0.00019866,2]
[423325970,1780057862000,-151.0,0.00019921,2]
[423325963,1780057862000,-152.0,0.00019866,2]
[423325977,1780057862000,-1088.59,0.0002,2]
[423325972,1780057862000,-745.65223615,0.00019976,2]
[423326007,1780057862000,-831.51979762,0.00020141,2]
[423326006,1780057862000,-151.0,0.00020141,2]
[423326005,1780057862000,-831.51979762,0.00020141,2]
[423326002,1780057862000,-801.85129954,0.00020086,2]
[423326004,1780057862000,-801.85129954,0.00020086,2]
[423325999,1780057862000,-151.0,0.00020031,2]
[423326001,1780057862000,-1025.5045555,0.00020033,2]
[423326003,1780057862000,-151.0,0.00020086,2]
[423325997,1780057862000,-2000.0,0.0002,7]
[423326000,1780057862000,-773.24136889,0.00020031,2]
[423325995,1780057862000,-912.0,0.0002,2]
[423325996,1780057862000,-5486.0,0.0002,2]
[423325998,1780057862000,-773.24136889,0.00020031,2]
[423325994,1780057862000,-818.0,0.0002,2]
[423326008,1780057862000,-210.00716001,0.00020196,2]
[423325992,1780057862000,-2838.0,0.0002,2]
[423325993,1780057862000,-7357.34,0.0002,2]
[423325978,1780057862000,-1492.90350179,0.0002,5]
[423325981,1780057862000,-3186.66323601,0.0002,2]
[423325980,1780057862000,-6000.0,0.0002,2]
[423325982,1780057862000,-1177.0,0.0002,2]
[423325984,1780057862000,-500.0,0.0002,2]
[423325985,1780057862000,-614.64028937,0.0002,2]
[423325979,1780057862000,-10537.51094005,0.0002,2]
[423325986,1780057862000,-731.0,0.0002,2]
[423325987,1780057862000,-2815.0,0.0002,2]
[423325988,1780057862000,-2360.0,0.0002,2]
[423325990,1780057862000,-792.0,0.0002,2]
[423325989,1780057862000,-400.0,0.0002,2]
[423325983,1780057862000,-1489.0,0.0002,2]
[423325991,1780057862000,-659.0,0.0002,2]
[423326054,1780057863000,-6111.0,0.00021,2]
[423326046,1780057863000,-225.18697532,0.00020962,2]
[423326042,1780057863000,-151.0,0.00020962,2]
[423326043,1780057863000,-187.78006524,0.00020962,2]
[423326041,1780057863000,-301.0006985,0.00020962,2]
[423326044,1780057863000,-745.65223615,0.00020962,2]
[423326045,1780057863000,-225.18697532,0.00020962,2]
[423326038,1780057863000,-4560.0,0.00020717,2]
[423326039,1780057863000,-200.0,0.00020962,2]
[423326047,1780057863000,-200.0,0.00020962,2]
[423326048,1780057863000,-225.18697532,0.00020962,2]
[423326055,1780057863000,-6836.4055684,0.00021,2]
[423326057,1780057863000,-1177.0,0.00021,2]
[423326049,1780057863000,-2236.95670847,0.00020962,2]
[423326058,1780057863000,-1489.0,0.00021,2]
[423326053,1780057863000,-15000.0,0.00021,2]
[423326052,1780057863000,-829.0,0.00021,2]
[423326050,1780057863000,-200.0,0.00020962,2]
[423326059,1780057863000,-731.0,0.00021,2]
[423326051,1780057863000,-1536.04360648,0.00020962,2]
[423326068,1780057863000,-207.31,0.00021205,2]
[423326063,1780057863000,-659.0,0.00021,2]
[423326065,1780057863000,-818.0,0.00021,2]
[423326040,1780057863000,-799.54513344,0.00020962,2]
[423326056,1780057863000,-266.6207616,0.00021,4]
[423326037,1780057863000,-485.88774607,0.00020628,2]
[423326018,1780057863000,-7567.4,0.00020381,2]
[423326032,1780057863000,-1481.2378076,0.00020414,2]
[423326064,1780057863000,-2838.0,0.00021,2]
[423326015,1780057863000,-927.27566594,0.00020306,2]
[423326016,1780057863000,-151.0,0.00020361,2]
[423326009,1780057863000,-151.0,0.00020196,2]
[423326014,1780057863000,-151.0,0.00020306,2]
[423326012,1780057863000,-151.0,0.00020251,2]
[423326013,1780057863000,-894.19061325,0.00020251,2]
[423326010,1780057863000,-862.28603014,0.00020196,2]
[423326017,1780057863000,-961.58486558,0.00020361,2]
[423326020,1780057863000,-771.01748644,0.00020414,2]
[423326019,1780057863000,-200.0,0.00020414,2]
[423326022,1780057863000,-151.0,0.00020414,2]
[423326021,1780057863000,-290.26104002,0.00020414,2]
[423326023,1780057863000,-181.08010149,0.00020414,2]
[423326024,1780057863000,-719.04747942,0.00020414,2]
[423326025,1780057863000,-217.15233878,0.00020414,2]
[423326026,1780057863000,-217.15233878,0.00020414,2]
[423326029,1780057863000,-2157.14243826,0.00020414,2]
[423326031,1780057863000,-453.99649548,0.00020414,2]
[423326033,1780057863000,-151.0,0.00020416,2]
[423326036,1780057863000,-17965.7,0.00020548,2]
[423326030,1780057863000,-200.0,0.00020414,2]
[423326035,1780057863000,-476.63,0.00020524,2]
[423326027,1780057863000,-200.0,0.00020414,2]
[423326028,1780057863000,-217.15233878,0.00020414,2]
[423326034,1780057863000,-997.16350561,0.00020416,2]
[423326061,1780057863000,-2360.0,0.00021,2]
[423326011,1780057863000,-168.57003297,0.000202,2]
[423326062,1780057863000,-792.0,0.00021,2]
[423326107,1780057863000,-792.0,0.00022,2]
[423326096,1780057863000,-807.52288603,0.00021918,2]
[423326098,1780057863000,-500.0,0.00021977,2]
[423326097,1780057863000,-1000.0,0.00021977,2]
[423326100,1780057863000,-829.0,0.00022,2]
[423326099,1780057863000,-200.0,0.00021977,2]
[423326103,1780057863000,-731.0,0.00022,2]
[423326102,1780057863000,-1489.0,0.00022,2]
[423326105,1780057863000,-2360.0,0.00022,2]
[423326106,1780057863000,-450.0,0.00022,2]
[423326104,1780057863000,-2815.0,0.00022,2]
[423326108,1780057863000,-659.0,0.00022,2]
[423326116,1780057863000,-323.68682015,0.00022058,2]
[423326117,1780057863000,-151.0,0.00022058,2]
[423326113,1780057863000,-2000.0,0.00022,7]
[423326112,1780057863000,-912.0,0.00022,2]
[423326114,1780057863000,-5486.0,0.00022,2]
[423326109,1780057863000,-2838.0,0.00022,2]
[423326118,1780057863000,-201.93286098,0.00022058,2]
[423326110,1780057863000,-796.7,0.00022,2]
[423326111,1780057863000,-818.0,0.00022,2]
[423326115,1780057863000,-859.8060506,0.00022058,2]
[423326119,1780057863000,-275.92646079,0.00022058,2]
[423326121,1780057863000,-200.0,0.00022058,2]
[423326120,1780057863000,-242.15909246,0.00022058,2]
[423326101,1780057863000,-1177.0,0.00022,2]
[423326095,1780057863000,-789.412216,0.00021918,2]
[423326060,1780057863000,-2815.0,0.00021,2]
[423326091,1780057863000,-1325.94,0.00021665,2]
[423326066,1780057863000,-912.0,0.00021,2]
[423326070,1780057863000,-217.15233878,0.00021235,2]
[423326067,1780057863000,-5486.0,0.00021,2]
[423326069,1780057863000,-180.15560403,0.00021235,2]
[423326071,1780057863000,-1653.84,0.00021273,2]
[423326079,1780057863000,-312.13772435,0.0002151,2]
[423326081,1780057863000,-194.72792766,0.0002151,2]
[423326084,1780057863000,-200.0,0.0002151,2]
[423326072,1780057863000,-2470.31,0.000214,7]
[423326076,1780057863000,-370.13616685,0.00021505,7]
[423326080,1780057863000,-151.0,0.0002151,2]
[423326075,1780057863000,-58418.47841133,0.000215,2]
[423326078,1780057863000,-829.12830338,0.0002151,2]
[423326073,1780057863000,-300.0,0.00021499,2]
[423326074,1780057863000,-300.0,0.00021499,2]
[423326077,1780057863000,-218.97758758,0.0002151,2]
[423326087,1780057863000,-2319.72410669,0.0002151,2]
[423326092,1780057863000,-1088.59,0.000217,2]
[423326094,1780057863000,-5000.0,0.00021918,2]
[423326089,1780057863000,-1592.87721992,0.0002151,2]
[423326086,1780057863000,-233.5188934,0.0002151,2]
[423326088,1780057863000,-200.0,0.0002151,2]
[423326085,1780057863000,-233.5188934,0.0002151,2]
[423326083,1780057863000,-233.5188934,0.0002151,2]
[423326090,1780057863000,-476.63,0.00021551,2]
[423326082,1780057863000,-773.24136889,0.0002151,2]
[423326093,1780057863000,-7357.34,0.00021782,2]
[423326154,1780057864000,-355.0,0.00022862,7]
[423326161,1780057864000,-2500.0,0.00023,20]
[423326158,1780057864000,-829.0,0.00023,2]
[423326155,1780057864000,-160.0,0.00022864,14]
[423326159,1780057864000,-1000.0,0.00023,20]
[423326150,1780057864000,-251.11897888,0.00022606,2]
[423326156,1780057864000,-438.610338,0.00022864,14]
[423326160,1780057864000,-2500.0,0.00023,20]
[423326153,1780057864000,-1712.93078311,0.00022606,2]
[423326152,1780057864000,-200.0,0.00022606,2]
[423326157,1780057864000,-717.220677,0.00022864,14]
[423326162,1780057864000,-2500.0,0.00023,20]
[423326174,1780057864000,-5486.0,0.00023,2]
[423326163,1780057864000,-1075.0,0.00023,2]
[423326170,1780057864000,-659.0,0.00023,2]
[423326167,1780057864000,-2815.0,0.00023,2]
[423326165,1780057864000,-1489.0,0.00023,2]
[423326171,1780057864000,-2838.0,0.00023,2]
[423326172,1780057864000,-818.0,0.00023,2]
[423326173,1780057864000,-912.0,0.00023,2]
[423326169,1780057864000,-792.0,0.00023,2]
[423326168,1780057864000,-2360.0,0.00023,2]
[423326166,1780057864000,-731.0,0.00023,2]
[423326176,1780057864000,-436.88401428,0.00023154,2]
[423326143,1780057864000,-335.66323249,0.00022606,2]
[423326164,1780057864000,-1177.0,0.00023,2]
[423326142,1780057864000,-747.80937859,0.00022605,2]
[423326133,1780057864000,-1272.0,0.00022241,2]
[423326141,1780057864000,-599.60298507,0.00022605,2]
[423326177,1780057864000,-151.0,0.00023154,2]
[423326122,1780057864000,-242.15909246,0.00022058,2]
[423326124,1780057864000,-2405.55389863,0.00022058,2]
[423326123,1780057864000,-242.15909246,0.00022058,2]
[423326126,1780057864000,-1651.81367706,0.00022058,2]
[423326125,1780057864000,-200.0,0.00022058,2]
[423326129,1780057864000,-584.43,0.00022241,2]
[423326127,1780057864000,-585.9151148,0.00022241,2]
[423326128,1780057864000,-584.43,0.00022241,2]
[423326140,1780057864000,-302.96099822,0.00022604,2]
[423326139,1780057864000,-524.93,0.00022466,2]
[423326132,1780057864000,-584.46,0.00022241,2]
[423326137,1780057864000,-22207.83321406,0.00022465,2]
[423326138,1780057864000,-933.75,0.00022466,2]
[423326135,1780057864000,-286.92148777,0.00022271,2]
[423326131,1780057864000,-584.43,0.00022241,2]
[423326130,1780057864000,-584.43,0.00022241,2]
[423326136,1780057864000,-7567.4,0.00022353,2]
[423326134,1780057864000,-525.0,0.00022241,2]
[423326145,1780057864000,-151.0,0.00022606,2]
[423326151,1780057864000,-2494.55939288,0.00022606,2]
[423326149,1780057864000,-251.11897888,0.00022606,2]
[423326148,1780057864000,-200.0,0.00022606,2]
[423326144,1780057864000,-891.61887448,0.00022606,2]
[423326147,1780057864000,-280.17462272,0.00022606,2]
[423326146,1780057864000,-209.40437684,0.00022606,2]
[423326179,1780057864000,-288.71285617,0.00023154,2]
[423326180,1780057864000,-260.4103811,0.00023154,2]
[423326236,1780057864000,-152.0,0.00024645,7]
[423326208,1780057864000,-2815.0,0.00024,2]
[423326212,1780057864000,-659.0,0.00024,2]
[423326211,1780057864000,-792.0,0.00024,2]
[423326222,1780057864000,-9243.94,0.00024174,2]
[423326213,1780057864000,-2838.0,0.00024,2]
[423326214,1780057864000,-818.0,0.00024,2]
[423326215,1780057864000,-912.0,0.00024,2]
[423326220,1780057864000,-7390.55,0.00024174,2]
[423326221,1780057864000,-6120.17,0.00024174,2]
[423326217,1780057864000,-5486.0,0.00024,2]
[423326219,1780057864000,-1006.5,0.00024129,2]
[423326218,1780057864000,-319.29,0.0002411,2]
[423326202,1780057864000,-829.0,0.00024,2]
[423326229,1780057864000,-200.0,0.0002425,2]
[423326230,1780057864000,-1910.18787185,0.0002425,2]
[423326227,1780057864000,-153.27316643,0.0002425,2]
[423326224,1780057864000,-3759.74472052,0.0002421,2]
[423326231,1780057864000,-152.0,0.00024287,6]
[423326226,1780057864000,-233.5188934,0.0002425,2]
[423326228,1780057864000,-2781.82699784,0.0002425,2]
[423326232,1780057864000,-10785.48752526,0.0002429,7]
[423326225,1780057864000,-719.89917803,0.0002425,2]
[423326223,1780057864000,-760.91,0.00024174,2]
[423326234,1780057864000,-1000.0,0.00024343,10]
[423326235,1780057864000,-300.0,0.00024343,10]
[423326178,1780057864000,-217.15233878,0.00023154,2]
[423326233,1780057864000,-7567.4,0.00024324,2]
[423326205,1780057864000,-1177.0,0.00024,2]
[423326216,1780057864000,-2000.0,0.00024,7]
[423326200,1780057864000,-219.0,0.00023823,2]